bitfinex/quotes_ETHUSD_20250511
["timestamp","ask_amount","ask_price","bid_price","bid_amount"]
[1746949843216,4.05461393,2466.4,2466.2,4.794]
[1746949843773,8.79520803,2466.6,2465.7,0.8141]
[1746949843774,4.741,2466.6,2466.1,4.795]
[1746949844083,5.04701016,2466.6,2466.1,4.795]
[1746949844487,4.05453247,2466.4,2466.1,4.795]
[1746949844705,4.05439163,2466.5,2466.2,1.48591653]
[1746949844908,4.05450573,2466.4,2466.2,1.48591653]
[1746949845269,5.04701016,2466.6,2466.2,1.48591653]
[1746949846010,4.05437054,2466.5,2466.2,1.48591653]
[1746949846209,9.10124846,2466.6,2466.2,1.48591653]
[1746949847008,5.04701016,2466.6,2466.2,1.48591653]
[1746949847316,4.05449237,2466.4,2465.7,5.6091]
[1746949847475,4.05440776,2466.5,2465.7,5.6091]
[1746949847676,5.04701016,2466.6,2466.3,2.23780256]
[1746949847977,5.04701016,2466.6,2466.4,1.4856886]
[1746949848426,5.04701016,2466.6,2466.3,0.752]
[1746949848725,5.04701016,2466.6,2466.4,1.4856886]
[1746949848886,0.30601016,2466.6,2466.4,1.4856886]
[1746949849227,0.17387557,2466.5,2466.3,0.752]
[1746949849457,0.17387557,2466.5,2466.4,4.729]
[1746949849606,0.17387557,2466.5,2466.4,5.31764318]
[1746949850105,4.0530877,2467.3,2466.4,5.31764318]
[1746949850919,4.722,2467.5,2466.5,0.752]
[1746949851114,0.17003904,2467.2,2466.6,13.375]
[1746949851342,0.17003904,2467.2,2466.6,15.31541]
[1746949851928,0.8287,2468.1,2466.7,0.752]
[1746949852110,4.718,2468.0,2466.8,0.7786]
[1746949852509,0.17168159,2467.9,2466.8,0.7786]
[1746949852947,8.17168159,2467.9,2466.8,0.7786]
[1746949853250,4.05313556,2467.3,2466.8,0.7786]
[1746949853454,12.05332097,2467.2,2466.9,4.729]
[1746949853946,12.05350628,2467.0,2466.9,4.729]
[1746949854719,12.42519436,2467.0,2466.9,4.729]
[1746949855453,12.64819727,2467.0,2466.9,4.729]
[1746949856144,12.66582855,2467.0,2466.9,4.729]
[1746949856325,13.21582855,2467.0,2466.9,4.729]
[1746949856935,4.66582855,2467.0,2466.9,4.729]
[1746949857134,0.61266139,2467.0,2466.9,4.729]
[1746949857355,4.66616767,2467.0,2466.9,4.729]
[1746949857860,4.66617813,2467.0,2466.9,4.729]
[1746949858021,4.66618318,2467.0,2466.9,4.729]
[1746949858555,4.66617386,2467.0,2466.9,4.729]
[1746949858880,0.55,2466.9,2466.6,13.375]
[1746949859187,12.05399927,2466.7,2466.6,13.375]
[1746949859402,4.05449499,2466.4,2466.2,4.728]
[1746949859602,16.75565677,2466.3,2466.2,4.728]
[1746949859885,4.05532502,2465.9,2465.3,0.7919]
[1746949860086,8.0,2466.1,2465.3,0.7919]
[1746949860382,0.37178824,2466.0,2465.5,0.7919]
[1746949860578,0.37178824,2466.0,2465.6,0.04055285]
[1746949860874,0.37178824,2466.0,2465.5,0.7919]
[1746949860875,8.37178824,2466.0,2465.5,0.7919]
[1746949861063,0.37174718,2465.9,2465.6,0.04055665]
[1746949861582,4.42709347,2465.9,2465.7,4.729]
[1746949861790,0.37174718,2465.8,2465.7,4.729]
[1746949862552,4.22590492,2466.3,2465.7,4.729]
[1746949862884,8.0,2466.0,2465.7,4.729]
[1746949863076,12.05529947,2466.0,2465.7,4.729]
[1746949863440,0.01473815,2465.9,2465.8,0.04055574]
[1746949863759,0.01473815,2465.9,2465.8,0.82095574]
[1746949864068,0.01473815,2465.9,2465.8,1.37595131]
[1746949864364,8.0,2466.5,2465.8,1.37595131]
[1746949864567,0.01473815,2465.9,2465.8,1.37595131]
[1746949864733,12.05433801,2466.5,2465.8,1.37595131]
[1746949864933,0.01473815,2465.9,2465.8,0.7804]
[1746949865129,0.30427874,2466.7,2465.8,0.7804]
[1746949865333,0.01473815,2465.9,2465.8,0.82094919]
[1746949865527,8.0,2466.7,2465.8,0.82094919]
[1746949865528,8.0,2466.7,2465.8,14.19694919]
[1746949865732,8.31032784,2466.7,2465.8,14.1564]
[1746949865933,0.16871076,2466.6,2465.9,1.88854]
[1746949866134,0.16871076,2466.6,2466.0,0.04054394]
[1746949866468,4.22301237,2466.6,2465.9,1.88854]
[1746949866665,0.16403604,2466.6,2465.9,1.88854]
[1746949866973,0.16751282,2466.6,2466.0,0.04054395]
[1746949867280,8.0,2466.1,2465.1,0.7578]
[1746949867475,0.55,2466.0,2465.1,0.7578]
[1746949867766,4.05547895,2465.8,2465.1,0.7578]
[1746949867992,4.683,2466.1,2465.1,1.35686825]
[1746949868177,0.15293088,2465.7,2465.1,1.39742797]
[1746949868467,4.683,2466.1,2465.1,1.39742797]
[1746949868634,0.15307974,2465.6,2465.1,1.39742797]
[1746949868970,8.73577537,2466.3,2465.2,0.7578]
[1746949869129,12.05437791,2466.5,2465.1,0.63962797]
[1746949869130,4.054461,2466.5,2465.4,0.7578]
[1746949869336,0.13805671,2466.2,2465.5,0.04055217]
[1746949869559,4.05453682,2466.4,2465.5,0.04055217]
[1746949869770,0.13820552,2466.1,2465.6,0.7578]
[1746949869960,8.7325419,2467.0,2465.8,0.7578]
[1746949870157,4.05401944,2466.7,2465.8,0.7578]
[1746949870359,4.19069075,2466.9,2466.0,0.7578]
[1746949870563,0.13746162,2466.6,2466.1,0.04054353]
[1746949870856,4.05273451,2467.5,2466.2,0.7578]
[1746949871059,0.13761038,2466.5,2466.3,0.04053911]
[1746949871372,4.07039554,2467.1,2466.3,0.04053911]
[1746949871570,0.01695922,2467.1,2466.3,0.04053911]
[1746949871776,0.01695922,2467.1,2466.4,0.7578]
[1746949871971,0.01695922,2467.1,2466.6,0.7578]
[1746949872141,4.05291157,2467.4,2466.6,0.7578]
[1746949872336,0.13686672,2467.0,2466.7,0.04053305]
[1746949872553,4.05340521,2467.1,2466.6,0.7578]
[1746949872751,0.13701543,2466.9,2466.6,0.7578]
[1746949872969,0.13686672,2467.0,2466.6,0.7578]
[1746949873168,0.13716415,2466.8,2466.6,0.7578]
[1746949873375,8.55,2467.7,2466.6,0.7578]
[1746949873572,0.13731288,2466.7,2466.6,1.30648]
[1746949873778,4.05310495,2467.3,2466.6,0.7578]
[1746949874074,4.05284886,2467.5,2466.6,0.7578]
[1746949874075,0.22263611,2467.2,2466.6,0.7578]
[1746949874290,0.35920545,2467.2,2466.6,0.7578]
[1746949874488,0.13656934,2467.2,2466.6,0.7578]
[1746949874698,4.05328484,2467.2,2466.6,0.7578]
[1746949874859,0.13893402,2467.1,2466.6,0.7578]
[1746949875064,4.19227881,2467.1,2466.6,0.7578]
[1746949875394,0.13893402,2467.1,2466.6,0.7578]
[1746949875580,0.13893402,2467.1,2466.7,0.04053812]
[1746949875760,0.13893402,2467.1,2466.6,0.7578]
[1746949875959,4.665,2467.6,2466.6,0.7578]
[1746949876160,4.05373258,2466.9,2466.5,4.729]
[1746949876380,4.05363916,2467.0,2466.5,4.729]
[1746949876586,4.19333497,2466.8,2466.5,4.729]
[1746949876782,4.05390864,2466.8,2466.5,4.729]
[1746949876982,0.5099952,2466.7,2466.5,4.729]
[1746949877200,4.05416362,2466.6,2466.5,4.729]
[1746949877497,0.13925471,2466.6,2466.5,4.729]
[1746949877994,8.71488104,2466.8,2466.5,4.729]
[1746949878198,4.19341833,2466.6,2466.5,4.729]
[1746949878497,0.13925471,2466.6,2466.5,4.729]
[1746949878705,0.51011638,2466.6,2466.5,4.729]
[1746949879196,4.78678568,2466.6,2466.5,4.729]
[1746949879413,4.78678568,2466.6,2465.7,13.377]
[1746949879414,4.05509789,2466.1,2465.7,13.377]
[1746949879617,4.05547895,2465.8,2465.7,13.377]
[1746949879996,4.56690691,2465.8,2465.7,13.377]
[1746949880297,4.56690691,2465.8,2465.3,4.661]
[1746949880298,4.0557406,2465.7,2465.3,4.661]
[1746949880608,4.05598003,2465.5,2465.3,4.661]
[1746949880813,4.19674698,2465.6,2465.3,4.661]
[1746949881114,4.05613693,2465.4,2465.3,4.661]
[1746949881313,4.19659357,2465.4,2465.3,4.661]
[1746949881876,12.19659357,2465.4,2465.3,4.661]
[1746949882078,4.05709751,2464.9,2464.7,13.375]
[1746949882326,4.19847453,2464.8,2464.7,13.375]
[1746949882830,4.05893574,2463.7,2463.6,4.662]
[1746949882982,4.649,2463.9,2463.2,5.4844]
[1746949883178,0.55,2463.6,2463.0,4.662]
[1746949883379,12.43861106,2463.8,2463.0,4.662]
[1746949883593,4.19994535,2463.5,2463.0,4.662]
[1746949883792,4.36907206,2463.5,2463.0,4.662]
[1746949883992,4.2983914,2463.2,2462.4,4.662]
[1746949884221,4.06061436,2462.7,2462.2,5.4844]
[1746949884515,0.14188855,2462.6,2462.2,5.4844]
[1746949884718,4.06058391,2462.7,2462.2,4.662]
[1746949885020,4.20267965,2462.6,2462.2,4.662]
[1746949885182,0.14188855,2462.6,2462.2,4.662]
[1746949885524,4.05903861,2463.7,2462.2,4.662]
[1746949885525,0.14203778,2462.5,2462.4,0.8224]
[1746949885683,8.35685947,2464.0,2462.4,13.4854]
[1746949885882,4.0588798,2463.8,2462.5,0.04059586]
[1746949886083,0.14024772,2463.7,2462.4,5.4854]
[1746949886321,8.9433914,2464.0,2462.6,0.8224]
[1746949886521,8.9433914,2464.0,2462.5,0.0405992]
[1746949886522,0.13994955,2463.9,2462.8,0.8224]
[1746949886864,0.13994955,2463.9,2462.9,18.044]
[1746949886990,0.13994955,2463.9,2463.0,0.7824]
[1746949887520,4.05971485,2463.3,2462.9,18.044]
[1746949887817,8.83573305,2463.2,2462.9,18.044]
[1746949888186,8.83584386,2463.2,2462.9,18.044]
[1746949888380,4.05992843,2463.1,2462.9,18.044]
[1746949888592,0.13496145,2463.2,2462.9,4.663]
[1746949888896,4.05980159,2463.2,2462.9,4.663]
[1746949889081,0.13511062,2463.1,2462.9,4.663]
[1746949889418,4.06071056,2462.7,2462.4,4.665]
[1746949889585,4.638,2462.7,2462.4,4.665]
[1746949889785,0.13585663,2462.6,2462.4,4.665]
[1746949890317,12.19671541,2462.6,2461.9,13.385]
[1746949890624,4.06095082,2462.5,2461.9,13.385]
[1746949890827,4.0609137,2462.5,2461.9,13.385]
[1746949891003,0.13181439,2462.4,2461.9,13.385]
[1746949891528,0.13196365,2462.3,2461.9,13.385]
[1746949891695,8.0,2463.1,2461.9,13.385]
[1746949891897,0.13033299,2463.0,2462.1,0.7824]
[1746949892097,0.13033299,2463.0,2462.2,0.04060992]
[1746949892403,4.634,2463.3,2462.2,0.04060992]
[1746949892618,0.13040134,2462.9,2462.2,0.04060992]
[1746949892824,4.634,2463.3,2462.1,0.7824]
[1746949893125,4.05988403,2463.2,2462.2,0.21209]
[1746949893319,0.11896544,2463.1,2462.3,0.04060566]
[1746949893522,4.2983914,2464.2,2462.4,0.7946]
[1746949893694,2.51893091,2465.2,2462.3,0.04060562]
[1746949893695,4.631,2464.3,2462.7,0.7946]
[1746949893897,0.11869935,2464.2,2462.9,0.7946]
[1746949894093,4.93810422,2464.8,2463.1,0.7946]
[1746949894309,4.93810422,2464.8,2463.0,8.0405864]
[1746949894310,4.05745354,2464.6,2463.3,0.7946]
[1746949894504,4.17597253,2464.5,2463.4,4.667]
[1746949894707,0.11835329,2464.5,2463.5,4.667]
[1746949895622,4.05791152,2464.4,2463.6,4.667]
[1746949895929,0.11990344,2464.3,2463.6,4.667]
[1746949896131,4.2983914,2464.6,2463.7,0.50728812]
[1746949896301,4.05807826,2464.3,2463.6,4.667]
[1746949896498,0.12035531,2464.2,2463.6,4.667]
[1746949896711,8.0,2464.5,2463.6,4.667]
[1746949896912,0.12171902,2464.4,2463.6,4.667]
[1746949897108,0.12171902,2464.4,2463.7,0.4667]
[1746949897331,4.17957421,2464.4,2463.6,4.667]
[1746949897531,0.12171902,2464.4,2463.6,4.667]
[1746949897913,4.05794749,2464.3,2463.6,4.667]
[1746949898197,0.11181326,2464.2,2463.6,4.667]
[1746949899210,0.11181326,2464.2,2463.7,0.0405856]
[1746949899535,0.11181326,2464.2,2463.6,4.70758422]
[1746949899743,0.11181326,2464.2,2463.7,0.47075842]
[1746949899901,4.2983914,2463.8,2463.0,5.4952]
[1746949900101,8.0,2463.6,2462.6,4.666]
[1746949900297,0.11285683,2463.5,2462.6,4.666]
[1746949900618,12.617,2463.4,2462.6,4.666]
[1746949900811,4.05988466,2463.2,2462.6,4.666]
[1746949901151,0.11173695,2463.1,2462.6,4.666]
[1746949901520,0.7637,2463.3,2462.6,4.666]
[1746949901721,0.11158779,2463.2,2462.6,4.666]
[1746949902046,4.05965822,2463.3,2462.6,5.1326]
[1746949902249,0.11173695,2463.1,2462.7,0.82590286]
[1746949902449,0.10195489,2463.2,2462.8,4.667]
[1746949902630,0.7513,2463.8,2462.8,4.667]
[1746949902806,0.7513,2463.8,2462.8,5.25889]
[1746949903004,0.10120925,2463.7,2462.8,5.25889]
[1746949903508,12.611,2464.0,2463.0,0.7853]
[1746949903706,0.09211553,2463.9,2463.0,0.7853]
[1746949903906,4.61,2464.3,2463.1,0.8258894]
[1746949904110,0.09259995,2464.2,2463.1,0.8258894]
[1746949904654,0.09259995,2464.2,2463.1,0.7853]
[1746949904947,8.66683413,2464.4,2463.1,0.82588668]
[1746949905135,0.09245091,2464.3,2463.1,0.82588406]
[1746949905337,0.7513,2465.3,2463.5,4.2983914]
[1746949905508,0.09111016,2465.2,2463.7,0.7853]
[1746949905858,0.09111016,2465.2,2464.0,8.0]
[1746949906146,4.05592208,2465.6,2464.1,0.7853]
[1746949906351,4.0569315,2465.0,2464.1,0.7853]
[1746949906650,8.0,2465.4,2464.1,0.7853]
[1746949906651,4.05657604,2465.2,2464.1,0.7853]
[1746949906858,0.09155697,2464.9,2464.3,0.7853]
[1746949907148,0.30912237,2465.8,2464.5,0.765]
[1746949907334,4.603,2465.9,2464.6,0.04056249]
[1746949907545,0.09021687,2465.8,2464.7,0.765]
[1746949907707,0.09021687,2465.8,2465.1,8.0]
[1746949907909,7.33656211,2467.0,2465.3,8.0]
[1746949908149,4.05393189,2466.8,2465.5,0.765]
[1746949908445,4.05418515,2466.6,2465.7,0.765]
[1746949908613,4.05416362,2466.6,2465.7,0.765]
[1746949908822,0.08917525,2466.5,2465.8,0.04054965]
[1746949909001,0.08917525,2466.5,2465.7,0.765]
[1746949909207,4.05354624,2467.0,2465.7,0.765]
[1746949909428,0.08932402,2466.4,2465.8,0.04054649]
[1746949909638,4.81703608,2467.4,2465.8,0.04054649]
[1746949909862,0.0894728,2466.3,2465.9,0.765]
[1746949910047,0.7641,2467.4,2465.3,8.0]
[1746949910048,8.7641,2467.4,2466.1,0.765]
[1746949910247,4.05322565,2467.2,2466.2,4.602]
[1746949910447,0.08798555,2467.3,2466.3,0.04053895]
[1746949910646,0.0882829,2467.1,2466.3,0.04053895]
[1746949910846,4.596,2467.4,2466.4,0.765]
[1746949911172,2.51893091,2467.8,2466.6,0.765]
[1746949911360,0.08214302,2467.3,2466.8,0.765]
[1746949911553,4.35440953,2467.8,2466.9,4.6]
[1746949911751,0.08158893,2467.7,2466.9,4.6]
[1746949912275,4.05254586,2467.6,2466.8,0.765]
[1746949912572,4.13460189,2467.5,2467.0,4.6]
[1746949913068,8.08188619,2467.5,2466.9,4.6]
[1746949913234,4.05287576,2467.4,2466.9,4.6]
[1746949913440,8.0,2467.2,2465.8,4.87177034]
[1746949913674,4.05400436,2466.7,2465.9,0.04054511]
[1746949913855,4.05416404,2466.6,2465.8,4.87177034]
[1746949914037,4.05416404,2466.6,2465.8,5.44195737]
[1746949914038,4.13836882,2466.6,2465.8,5.44195737]
[1746949914258,4.13836882,2466.6,2465.9,4.599]
[1746949914259,4.05447226,2466.5,2465.9,4.599]
[1746949914569,0.08348149,2466.4,2465.9,4.599]
[1746949914741,4.1380315,2466.4,2466.0,4.599]
[1746949914942,0.08348149,2466.4,2466.0,4.599]
[1746949915178,8.0,2467.2,2466.0,4.599]
[1746949915179,4.05417708,2466.6,2466.0,4.599]
[1746949915475,0.08363027,2466.3,2465.8,0.31231838]
[1746949915650,4.05476466,2466.3,2466.1,4.599]
[1746949915855,8.55,2467.0,2466.1,4.599]
[1746949916045,0.08309087,2466.2,2466.1,4.599]
[1746949916362,0.08309087,2466.2,2465.3,13.384]
[1746949916363,4.05558506,2465.8,2465.5,4.599]
[1746949916561,4.05517642,2466.0,2465.5,4.599]
[1746949916883,0.08307167,2465.9,2465.5,4.599]
[1746949917380,0.08322051,2465.8,2465.5,4.599]
[1746949917943,0.08322051,2465.8,2465.6,0.04055446]
[1746949918278,4.581,2466.3,2465.6,0.04055446]
[1746949918454,0.08290363,2465.7,2465.5,4.599]
[1746949918777,4.581,2466.3,2465.6,0.4599]
[1746949918965,0.8094,2467.0,2465.8,0.8301]
[1746949919167,4.05409372,2466.7,2465.9,0.04054615]
[1746949919485,4.575,2466.9,2465.9,0.04054615]
[1746949919657,4.575,2466.9,2466.0,0.8301]
[1746949919986,0.08126693,2466.8,2466.2,0.8301]
[1746949920147,0.08126693,2466.8,2466.3,4.63853567]
[1746949920490,4.05295365,2467.4,2466.5,0.8301]
[1746949920786,8.0,2467.3,2466.6,13.379]
[1746949920986,4.05399927,2466.7,2466.6,13.379]
[1746949921154,4.571,2466.7,2466.3,4.598]
[1746949921486,4.05526091,2466.0,2465.7,4.598]
[1746949921981,0.08260594,2465.9,2465.7,4.598]
[1746949922386,4.05485142,2466.2,2465.7,4.598]
[1746949922558,0.08275478,2465.8,2465.7,4.598]
[1746949922757,11.39625178,2466.9,2465.7,4.598]
[1746949922969,0.08126693,2466.8,2465.8,0.8301]
[1746949923147,0.08126693,2466.8,2466.0,0.8301]
[1746949923350,4.567,2467.3,2466.1,0.8301]
[1746949923549,0.09789421,2467.2,2466.2,0.04053791]
[1746949923749,0.09789421,2467.2,2466.3,0.8301]
[1746949923994,0.09789421,2467.2,2466.5,0.8301]
[1746949924146,0.09789421,2467.2,2466.6,4.598]
[1746949924358,0.09789421,2467.2,2466.7,0.87062974]
[1746949924569,0.09789421,2467.2,2466.9,0.8301]
[1746949924802,0.09789421,2467.2,2466.8,0.54686297]
[1746949924803,0.09789421,2467.2,2467.1,0.8301]
[1746949924959,4.86153163,2467.9,2467.0,17.977]
[1746949925157,8.55,2467.6,2466.3,0.8301]
[1746949925363,4.05354011,2467.0,2466.3,5.4281]
[1746949925681,4.562,2467.0,2466.4,0.04053974]
[1746949925877,4.562,2467.0,2466.5,0.8301]
[1746949926076,4.05330297,2467.2,2466.5,0.8301]
[1746949926285,8.61373283,2467.5,2466.5,0.8301]
[1746949926795,4.05284915,2467.4,2466.5,0.8301]
[1746949927403,8.1006843,2467.8,2466.7,0.8087]
[1746949927404,0.01748493,2467.3,2466.7,0.8087]
[1746949927702,0.01748493,2467.3,2466.8,0.84922671]
[1746949927994,0.09193361,2467.2,2466.9,0.55]
[1746949928206,0.09193361,2467.2,2467.1,0.8087]
[1746949928410,4.05149483,2468.3,2467.2,0.8087]
[1746949928588,4.05124621,2468.4,2467.4,0.8087]
[1746949928789,4.05205828,2467.9,2467.4,0.8087]
[1746949928992,4.05284915,2467.4,2467.3,13.377]
[1746949929476,4.12726334,2467.4,2467.3,13.377]
[1746949930112,4.05311899,2467.3,2467.1,4.598]
[1746949930273,4.551,2467.2,2467.1,4.598]
[1746949930474,8.67888921,2467.2,2467.1,4.598]
[1746949930710,0.07471152,2467.2,2467.1,4.598]
[1746949930910,0.09193361,2467.2,2467.1,5.0578]
[1746949931206,0.09193361,2467.2,2467.1,4.598]
[1746949931207,0.01722209,2467.2,2467.1,4.598]
[1746949931579,0.01722209,2467.2,2467.1,5.4067]
[1746949931777,4.05202804,2467.9,2467.1,5.4067]
[1746949932011,0.07471152,2467.2,2467.1,5.4067]
[1746949932213,4.05317769,2467.2,2467.1,4.598]
[1746949932414,8.60017769,2467.2,2467.1,4.598]
[1746949933518,23.13323037,2467.2,2467.1,4.598]
[1746949933689,4.05393176,2466.8,2466.5,4.596]
[1746949934096,4.05402151,2466.7,2466.5,4.596]
[1746949934295,4.05416362,2466.6,2466.5,4.596]
[1746949934627,4.39081947,2466.6,2466.5,4.596]
[1746949934925,4.14496686,2466.6,2466.5,4.596]
[1746949935516,0.09080324,2466.6,2466.5,4.596]
[1746949935725,0.7625,2468.2,2466.7,0.8141]
[1746949935917,4.05212087,2467.9,2466.7,0.8141]
[1746949936220,4.05124475,2468.4,2466.9,0.8141]
[1746949936221,0.31025846,2468.4,2466.9,0.8141]
[1746949936417,5.3025,2468.6,2466.9,0.8141]
[1746949936418,4.05160875,2468.2,2466.9,0.8141]
[1746949936623,8.0,2468.5,2466.9,0.8141]
[1746949936927,4.05144426,2468.3,2466.9,0.8141]
[1746949937124,4.05171066,2468.1,2467.1,0.8103]
[1746949937311,4.05149721,2468.3,2467.1,0.8103]
[1746949937511,4.0515847,2468.2,2467.1,0.8103]
[1746949937832,0.30366303,2468.4,2467.1,0.8103]
[1746949938032,4.05225754,2467.8,2467.1,0.8103]
[1746949938231,4.05253984,2467.6,2467.1,0.8103]
[1746949938411,4.0527355,2467.5,2467.1,0.8103]
[1746949938613,4.535,2467.8,2467.1,0.8103]
[1746949938823,8.5858933,2468.0,2467.1,0.8103]
[1746949939347,4.534,2468.0,2467.1,0.8103]
[1746949939512,8.58465691,2468.2,2467.1,0.8103]
[1746949939719,4.533,2468.2,2467.1,0.8103]
[1746949940421,4.531,2468.4,2466.9,1.3603]
[1746949940623,4.05065505,2468.8,2467.1,0.8103]
[1746949940824,4.0508132,2468.7,2467.1,0.8103]
[1746949941025,4.53,2468.8,2467.1,0.8103]
[1746949941600,4.05075341,2468.7,2467.1,0.8103]
[1746949941838,4.05075341,2468.7,2467.0,0.55]
[1746949941839,4.05017365,2469.1,2467.4,0.55]
[1746949942000,4.04984177,2469.3,2467.8,0.55]
[1746949942206,4.04984177,2469.3,2467.9,0.8224]
[1746949942525,4.04993418,2469.2,2467.9,0.8224]
[1746949942711,12.527,2469.6,2467.9,0.8224]
[1746949942915,4.04996824,2469.2,2467.9,0.8224]
[1746949943250,8.57639543,2469.6,2468.1,0.8224]
[1746949943420,4.04983278,2469.3,2468.1,0.8224]
[1746949943747,4.527,2469.6,2468.1,0.8224]
[1746949943931,4.04951478,2469.5,2468.1,0.8224]
[1746949944130,4.04927934,2469.6,2468.2,0.04049876]
[1746949944444,4.04975533,2469.3,2468.4,0.8035]
[1746949944612,4.04952207,2469.5,2468.4,1.33725]
[1746949944947,12.523,2469.8,2468.4,1.33725]
[1746949945153,4.04936965,2469.6,2468.5,0.8035]
[1746949945315,4.04936965,2469.6,2468.6,0.04049843]
[1746949945515,12.523,2469.8,2468.7,0.8035]
[1746949945719,4.04969037,2469.4,2468.8,13.368]
[1746949945912,4.05037038,2469.0,2468.8,13.368]
[1746949946148,4.0498947,2469.2,2468.8,13.368]
[1746949946362,4.05038681,2468.9,2468.8,13.368]
[1746949946714,4.05031663,2469.0,2468.8,13.368]
[1746949947513,4.37139807,2468.9,2468.8,13.368]
[1746949947756,12.05038681,2468.9,2468.8,13.368]
[1746949948824,4.05055087,2468.8,2468.7,4.534]
[1746949949318,4.05169968,2468.1,2468.0,5.3375]
[1746949949519,4.06815765,2468.1,2468.0,4.534]
[1746949949916,4.1291431,2468.1,2468.0,4.52932527]
[1746949950141,4.14463178,2468.1,2468.0,4.52932527]
[1746949950455,0.11531486,2468.1,2468.0,4.52932527]
[1746949950848,0.30319897,2468.5,2468.0,4.52932527]
[1746949951160,4.05169968,2468.1,2468.0,4.52932527]
[1746949951658,4.05087904,2468.6,2468.0,4.52932527]
[1746949951659,4.0512325,2468.4,2468.0,4.52932527]
[1746949952245,4.35721473,2468.5,2468.0,4.52932527]
[1746949952465,8.0,2468.9,2468.0,4.52932527]
[1746949952466,12.506,2468.9,2468.0,4.52932527]
[1746949952659,4.05169968,2468.1,2468.0,4.52932527]
[1746949953356,4.1664071,2468.1,2468.0,4.52932527]
[1746949954438,1.08439352,2468.5,2468.0,4.52932527]
[1746949954439,4.05104533,2468.5,2468.0,5.32002527]
[1746949954656,4.05129526,2468.4,2468.0,5.32002527]
[1746949954837,8.7836,2469.2,2468.0,5.32002527]
[1746949955043,4.05055087,2468.8,2468.0,5.32002527]
[1746949955240,4.05066049,2468.8,2468.0,5.32002527]
[1746949955446,4.05055087,2468.8,2468.1,0.04051597]
[1746949955758,4.83356539,2469.2,2468.1,0.04051597]
[1746949955759,4.83350758,2469.2,2468.1,0.04051597]
[1746949955961,4.05050279,2468.9,2468.0,5.32002527]
[1746949956161,5.2826,2469.2,2468.1,0.53200253]
[1746949956359,4.0505322,2468.9,2468.1,0.53200253]
[1746949957051,4.05056719,2468.8,2468.1,0.53200253]
[1746949957252,4.04940271,2469.5,2468.0,5.32002527]
[1746949957462,4.05096406,2468.6,2468.1,0.7907]
[1746949957950,4.05050665,2468.9,2468.2,0.04050978]
[1746949958274,4.05057729,2468.8,2468.1,0.7907]
[1746949958648,4.05083168,2468.7,2468.1,0.7907]
[1746949958845,8.0,2469.4,2468.1,0.7907]
[1746949959144,4.05006149,2469.1,2468.2,0.7582]
[1746949959677,12.04983878,2469.3,2468.2,0.7582]
[1746949959678,0.2219793,2469.0,2468.2,0.7582]
[1746949960182,4.04981764,2469.3,2468.2,0.7582]
[1746949960382,4.04958931,2469.4,2468.2,0.7582]
[1746949960584,4.04976954,2469.3,2468.4,0.7582]
[1746949960886,4.04998664,2469.2,2468.5,4.533]
[1746949961086,4.04940271,2469.5,2468.5,4.533]
[1746949961581,8.0,2469.7,2468.5,4.533]
[1746949961582,0.22214075,2469.4,2468.6,0.04050252]
[1746949961782,4.05013793,2469.1,2468.5,4.533]
[1746949961993,4.05013793,2469.1,2468.5,5.06212]
[1746949962178,4.05010539,2469.1,2468.5,5.06212]
[1746949962576,0.22229411,2469.0,2468.5,5.06212]
[1746949962784,0.22229411,2469.0,2468.5,4.533]
[1746949962961,0.22229411,2469.0,2468.6,0.79870234]
[1746949963490,0.30698451,2469.4,2468.6,0.7987008]
[1746949963684,4.04946571,2469.5,2468.6,0.7987008]
[1746949963865,0.22209683,2469.3,2468.7,0.53317008]
[1746949964068,0.22209683,2469.3,2468.9,0.7582]
[1746949964292,0.22209683,2469.3,2469.0,0.04049742]
[1746949964591,4.04949258,2469.5,2468.9,0.79869742]
[1746949964775,4.483,2469.8,2468.9,0.7582]
[1746949964974,0.22216095,2469.4,2468.9,0.79869743]
[1746949965887,8.0,2469.7,2468.9,0.79869743]
[1746949966275,0.22203763,2469.6,2468.9,0.79869743]
[1746949966476,8.0,2469.7,2468.9,0.79869743]
[1746949966676,0.22203891,2469.6,2468.9,0.79869743]
[1746949966977,12.04909263,2469.7,2468.9,0.79869743]
[1746949967177,8.30961644,2469.7,2468.9,0.79869743]
[1746949967379,0.2221897,2469.6,2468.9,0.79869743]
[1746949967576,10.58135509,2470.2,2468.9,0.79869743]
[1746949967577,4.0484268,2470.1,2468.9,0.79869743]
[1746949967777,4.476,2470.4,2469.1,0.8155]
[1746949967988,4.29935365,2470.5,2469.3,0.8155]
[1746949968171,4.0486698,2470.0,2469.4,4.474]
[1746949968570,4.04852756,2470.1,2469.4,4.474]
[1746949968775,4.04833628,2470.2,2469.4,4.474]
[1746949969106,4.04793302,2470.4,2469.5,8.8155]
[1746949969291,8.8232266,2470.5,2469.6,1.32895]
[1746949969602,4.473,2470.5,2469.7,0.8155]
[1746949969767,4.0477073,2470.6,2469.7,0.8155]
[1746949970094,4.04801202,2470.4,2469.7,0.8155]
[1746949970587,12.04783049,2470.5,2469.7,0.8155]
[1746949971091,4.04800215,2470.4,2469.7,0.8155]
[1746949971504,8.0,2470.3,2469.7,0.8155]
[1746949971663,4.04888876,2469.9,2469.7,0.8155]
[1746949972059,4.29935365,2470.3,2469.7,0.8155]
[1746949972291,4.04917173,2469.7,2469.4,4.474]
[1746949972662,4.04924607,2469.6,2469.4,4.474]
[1746949973193,12.29935365,2469.9,2469.4,4.474]
[1746949973396,4.04940271,2469.5,2469.4,4.474]
[1746949974000,12.04940271,2469.5,2469.4,4.474]
[1746949974359,12.27030173,2469.5,2469.4,4.474]
[1746949974863,16.56965538,2469.5,2469.4,4.474]
[1746949975063,16.73030173,2469.5,2469.4,4.474]
[1746949976499,0.22089902,2469.5,2469.4,4.474]
[1746949977070,12.04907228,2469.8,2469.4,4.474]
[1746949977507,12.04894564,2469.8,2469.4,4.474]